bitfinex-derivatives/quotes_ETHF0:USTF0_20250309
["timestamp","ask_amount","ask_price","bid_price","bid_amount"]
[1741488805359,1.999,2183.9,2183.4,3.8973486]
[1741488806357,2.54857,2183.9,2183.4,3.3476686]
[1741488806558,1.999,2183.9,2183.4,3.8973586]
[1741488807359,2.54858,2183.9,2183.4,3.3476686]
[1741488807568,0.5496,2183.8,2183.4,3.3476686]
[1741488808257,1.999,2183.9,2183.4,3.3476686]
[1741488808562,2.54859,2183.9,2183.4,3.3476686]
[1741488808759,2.54859,2183.9,2183.4,0.0068686]
[1741488808960,0.5496,2183.8,2183.4,0.0068686]
[1741488809360,2.54859,2183.9,2183.4,0.0068686]
[1741488809661,1.999,2183.9,2183.4,0.0068686]
[1741488809960,0.5496,2183.8,2183.4,0.0068686]
[1741488810162,2.54859,2183.9,2183.4,0.5565586]
[1741488810361,0.5496,2183.8,2183.4,0.0068686]
[1741488811060,2.54859,2183.9,2183.4,0.5565586]
[1741488811263,5.11971366,2183.9,2183.4,0.0068686]
[1741488811462,0.54961,2183.8,2183.4,0.0068686]
[1741488812763,0.54963,2183.7,2183.4,0.0068686]
[1741488812962,6.4153,2183.6,2183.4,0.0068686]
[1741488813166,9.7354,2183.6,2183.4,0.0068686]
[1741488815368,3.12071366,2183.9,2183.5,0.54965]
[1741488815562,3.12071366,2183.9,2183.6,3.3192]
[1741488815960,3.12071366,2183.9,2183.7,3.0336]
[1741488816160,19.57080748,2184.2,2183.8,3.2078]
[1741488816567,17.22928182,2184.2,2184.1,3.75732]
[1741488817468,0.0068686,2184.4,2184.1,3.2078]
[1741488817661,0.0068686,2184.4,2184.2,6.2102]
[1741488818863,0.0068686,2184.4,2184.2,6.75969]
[1741488819065,0.0068686,2184.4,2184.2,6.2102]
[1741488819863,0.0068686,2184.4,2184.2,6.75968]
[1741488820667,0.0068686,2184.4,2184.2,6.2102]
[1741488820873,0.0068686,2184.4,2184.3,0.54947]
[1741488821870,0.0068686,2184.4,2184.3,3.62697]
[1741488822673,0.0068686,2184.4,2184.3,3.0775]
[1741488823370,0.0068686,2184.4,2184.2,6.54738671]
[1741488823679,0.0068686,2184.4,2184.2,7.09687671]
[1741488823877,0.0068686,2184.4,2184.2,6.54738671]
[1741488824078,0.0068686,2184.4,2184.2,7.09687671]
[1741488824477,0.0068686,2184.4,2184.3,0.54947]
[1741488830383,0.0068686,2184.4,2184.2,6.54738671]
[1741488830686,0.0068686,2184.4,2184.2,7.09687671]
[1741488830986,0.0068686,2184.4,2184.3,0.54947]
[1741488834991,0.0068686,2184.4,2184.2,6.54738671]
[1741488835291,0.0068686,2184.4,2184.3,0.54947]
[1741488839099,0.0068686,2184.4,2184.2,6.54738671]
[1741488839300,0.0068686,2184.4,2184.2,7.09686671]
[1741488839999,0.0068686,2184.4,2184.2,6.54738671]
[1741488840188,0.0068686,2184.4,2184.2,0.33718671]
[1741488840392,0.0068686,2184.4,2184.1,3.7573]
[1741488840698,0.0068686,2184.4,2184.2,0.54949]
[1741488840899,0.0068686,2184.4,2184.2,0.54948]
[1741488841095,0.0068686,2184.4,2184.3,0.54947]
[1741488847603,0.0068686,2184.4,2184.2,3.69518]
[1741488847804,0.0068686,2184.4,2184.1,4.10020915]
[1741488848005,0.0068686,2184.4,2184.1,3.55070915]
[1741488848208,0.0068686,2184.4,2184.2,0.54949]
[1741488848501,0.0068686,2184.4,2184.1,3.55070915]
[1741488849501,0.0068686,2184.4,2184.1,4.10021915]
[1741488850300,0.0068686,2184.4,2184.1,3.55070915]
[1741488850506,0.0068686,2184.4,2184.2,0.54949]
[1741488850907,0.0068686,2184.4,2184.1,4.10020915]
[1741488852403,0.0068686,2184.4,2184.1,3.55070915]
[1741488853502,0.0068686,2184.4,2184.1,4.10021915]
[1741488853800,0.0068686,2184.4,2184.1,3.2078]
[1741488854002,0.0068686,2184.4,2183.8,20.553]
[1741488854003,6.33538226,2184.4,2183.8,20.553]
[1741488854209,5.11871366,2184.3,2183.8,20.553]
[1741488854401,6.0404,2184.2,2183.8,20.553]
[1741488854601,9.1907,2184.2,2183.9,0.54954]
[1741488856905,9.1907,2184.2,2183.8,20.553]
[1741488857110,9.1907,2184.2,2183.9,0.54956]
[1741488857307,9.1907,2184.2,2183.8,20.553]
[1741488857508,9.1907,2184.2,2183.8,20.88792109]
[1741488857704,9.7402,2184.2,2183.8,20.88792109]
[1741488858011,9.1907,2184.2,2183.8,20.88792109]
[1741488858309,9.1907,2184.2,2183.8,20.553]
[1741488858810,12.86091366,2184.2,2183.8,20.553]
[1741488859011,12.86091366,2184.2,2183.8,21.10259]
[1741488859804,12.86091366,2184.2,2183.8,20.553]
[1741488860006,12.31141366,2184.2,2183.8,21.10258]
[1741488860408,12.31141366,2184.2,2183.8,20.553]
[1741488860606,12.86091366,2184.2,2183.7,3.2078]
[1741488860798,12.31141366,2184.2,2183.7,3.7574]
[1741488861005,12.31141366,2184.2,2183.8,0.54959]
[1741488861306,12.31141366,2184.2,2184.0,0.54953]
[1741488861514,12.31141366,2184.2,2183.7,3.55993315]
[1741488861711,12.31141366,2184.2,2183.8,0.54957]
[1741488862611,12.86091366,2184.2,2183.7,3.55993315]
[1741488862812,12.31141366,2184.2,2183.8,0.54959]
[1741488863208,12.31141366,2184.2,2183.7,4.10954315]
[1741488863811,12.86091366,2184.2,2183.7,4.10954315]
[1741488864315,12.86091366,2184.2,2183.7,3.55993315]
[1741488864515,0.54953,2184.1,2183.7,3.55993315]
[1741488864915,9.7402,2184.2,2183.7,3.55993315]
[1741488865717,9.1907,2184.2,2183.7,3.55993315]
[1741488866818,9.1907,2184.2,2183.7,4.10954315]
[1741488867416,9.1907,2184.2,2183.7,3.55993315]
[1741488867611,0.54952,2184.1,2183.7,3.55993315]
[1741488867821,12.31141366,2184.2,2183.7,3.55993315]
[1741488868020,0.54952,2184.1,2183.7,3.55993315]
[1741488868217,12.86092366,2184.2,2183.7,3.55993315]
[1741488868720,0.54955,2184.0,2183.7,3.2078]
[1741488868922,1.998,2183.9,2183.7,3.2078]
[1741488869114,1.998,2183.9,2183.4,2.9806686]
[1741488869115,9.62261,2183.8,2183.4,2.9806686]
[1741488869315,0.54964,2183.7,2183.4,2.9806686]
[1741488869619,0.54962,2183.7,2183.4,0.0068686]
[1741488869813,3.0869,2183.6,2183.4,0.0068686]
[1741488870020,3.0869,2183.6,2183.5,0.54967]
[1741488870220,12.1599,2183.8,2183.5,3.62465]
[1741488870521,12.1599,2183.8,2183.5,3.075]
[1741488870725,12.1599,2183.8,2183.5,3.62467]
[1741488871018,12.1599,2183.8,2183.5,3.075]
[1741488871223,12.1599,2183.8,2183.4,0.0068686]
[1741488872321,12.70951,2183.8,2183.4,0.0068686]
[1741488872524,12.1599,2183.8,2183.4,0.0068686]
[1741488872714,12.70952,2183.8,2183.4,0.0068686]
[1741488873020,0.54963,2183.7,2183.4,0.0068686]
[1741488873222,12.70951,2183.8,2183.4,0.0068686]
[1741488873522,15.83022366,2183.8,2183.4,0.0068686]
[1741488873724,15.83023366,2183.8,2183.4,0.0068686]
[1741488875024,0.54962,2183.7,2183.4,0.0068686]
[1741488875724,15.83021366,2183.8,2183.4,0.0068686]
[1741488876112,0.54963,2183.7,2183.4,0.0068686]
[1741488877123,0.54967,2183.5,2183.4,0.0068686]
[1741488877317,1.998,2183.5,2183.1,3.2078]
[1741488877517,6.61562,2183.4,2183.1,3.2078]
[1741488877716,0.54974,2183.3,2183.0,20.555]
[1741488877921,0.54974,2183.3,2182.9,2.8683]
[1741488877922,0.54975,2183.2,2182.9,2.8683]
[1741488878122,0.54973,2183.3,2182.9,2.8683]
[1741488878528,0.0068686,2183.3,2182.9,0.0068686]
[1741488879432,0.0068686,2183.3,2183.2,0.54975]
[1741488879830,0.0068686,2183.3,2183.0,3.038]
[1741488879831,0.0068686,2183.3,2183.1,3.2078]
[1741488880034,0.0068686,2183.3,2182.9,0.0068686]
[1741488880434,0.5565986,2183.3,2182.9,0.0068686]
[1741488880638,3.75755,2183.2,2182.9,0.0068686]
[1741488880937,3.75756,2183.2,2182.9,0.0068686]
[1741488881141,3.0662,2183.1,2182.9,0.0068686]
[1741488881443,6.0514,2183.0,2182.9,0.0068686]
[1741488883236,13.17211366,2183.0,2182.3,0.02807983]
[1741488883442,13.17211366,2183.0,2182.3,6.25997983]
[1741488883443,6.32851366,2182.9,2182.3,6.25997983]
[1741488883644,6.32851366,2182.9,2182.4,0.54995]
[1741488883936,6.87833366,2182.9,2182.3,6.80993983]
[1741488884143,6.32851366,2182.9,2182.3,6.80993983]
[1741488884344,6.87835366,2182.9,2182.4,0.0068686]
[1741488884539,3.2078,2182.5,2181.5,3.2078]
[1741488884842,3.75788,2181.9,2181.5,3.2078]
[1741488885041,5.0645,2181.8,2181.5,3.2078]
[1741488885234,5.0645,2181.8,2180.7,3.2078]
[1741488885235,3.2078,2181.6,2180.7,3.2078]
[1741488885436,5.13971366,2181.5,2180.9,3.2078]
[1741488885637,0.0068686,2181.4,2180.9,3.2078]
[1741488885830,5.2288,2181.9,2181.2,4.58341]
[1741488886035,5.2288,2181.9,2181.6,0.55014]
[1741488886240,3.2078,2181.9,2181.8,0.5501]
[1741488886436,2.022,2182.3,2181.9,0.55006]
[1741488886738,3.2078,2182.4,2181.9,3.2078]
[1741488886933,3.2078,2182.4,2182.2,0.54999]
[1741488887139,3.2146686,2182.4,2182.3,6.2316]
[1741488887538,0.0068686,2182.4,2182.3,9.98937]
[1741488887848,0.0068686,2182.4,2182.3,6.78157]
[1741488888345,0.0068686,2182.4,2182.3,6.2316]
[1741488890945,0.0068686,2182.4,2182.3,9.98937]
[1741488891153,0.0068686,2182.4,2182.3,9.4394]
[1741488892142,0.0068686,2182.4,2182.3,3.0726]
[1741488893549,0.0068686,2182.4,2182.0,3.2078]
[1741488893744,3.2146686,2182.4,2182.0,6.68193]
[1741488894252,5.9842686,2182.4,2182.0,6.68193]
[1741488894646,5.9842686,2182.4,2182.0,6.1319]
[1741488894855,5.9842686,2182.4,2182.1,0.55001]
[1741488895745,5.9842686,2182.4,2182.0,6.68193]
[1741488896451,3.2146686,2182.4,2182.0,6.1319]
[1741488896854,3.2146686,2182.4,2182.1,0.55001]
[1741488897151,3.2146686,2182.4,2182.0,6.68194]
[1741488897352,3.2146686,2182.4,2182.0,9.45604]
[1741488897950,3.2146686,2182.4,2182.1,0.55002]
[1741488898147,3.2146686,2182.4,2182.2,0.54999]
[1741488898346,3.2146686,2182.4,2182.0,8.906]
[1741488898547,3.2146686,2182.4,2182.3,0.54997]
[1741488898743,0.0068686,2182.4,2182.3,0.54997]
[1741488898945,0.0068686,2182.4,2182.3,3.75777]
[1741488900050,0.0068686,2182.4,2182.3,4.15362477]
[1741488900257,0.0068686,2182.4,2182.3,3.2078]
[1741488900650,0.0068686,2182.4,2182.3,3.75777]
[1741488901149,0.0068686,2182.4,2182.3,3.2078]
[1741488901653,0.0068686,2182.4,2182.3,3.75777]
[1741488902249,0.0068686,2182.4,2182.3,3.2078]
[1741488904455,0.0068686,2182.4,2182.3,3.75777]
[1741488904853,0.0068686,2182.4,2182.3,3.2078]
[1741488905056,0.0068686,2182.4,2182.1,0.55001]
[1741488905057,2.9438686,2182.4,2182.1,0.55001]
[1741488905257,2.9438686,2182.4,2182.0,5.6982]
[1741488905561,2.9438686,2182.4,2182.1,0.55001]
[1741488905760,2.9438686,2182.4,2182.0,6.24823]
[1741488905954,2.9438686,2182.4,2182.1,0.55002]
[1741488907462,2.9438686,2182.4,2182.2,0.55]
[1741488907760,2.9438686,2182.4,2182.0,5.6982]
[1741488907956,2.9438686,2182.4,2182.3,0.54997]
[1741488908162,0.0068686,2182.4,2182.3,0.54997]
[1741488908965,0.0068686,2182.4,2182.0,5.6982]
[1741488909562,0.0068686,2182.4,2182.3,0.54997]
[1741488910757,0.0068686,2182.4,2182.0,5.6982]
[1741488910956,0.0068686,2182.4,2182.2,0.54999]
[1741488911560,0.0068686,2182.4,2182.0,5.6982]
[1741488911857,0.1124686,2182.4,2181.9,3.55392279]
[1741488912064,0.1124686,2182.4,2182.1,0.55]
[1741488912360,0.1124686,2182.4,2182.0,5.7857]
[1741488912550,0.1124686,2182.4,2182.2,0.54999]
[1741488912758,0.1124686,2182.4,2182.0,5.7857]
[1741488912958,0.1124686,2182.4,2182.1,0.55001]
[1741488913153,0.1124686,2182.4,2182.2,0.54999]
[1741488913358,0.1124686,2182.4,2182.3,0.54997]
[1741488913558,0.1124686,2182.4,2182.0,5.7857]
[1741488913759,0.1124686,2182.4,2182.1,0.55001]
[1741488914156,0.1124686,2182.4,2182.0,5.7857]
[1741488914364,0.1124686,2182.4,2182.1,0.55001]
[1741488914766,0.1124686,2182.4,2182.0,5.7857]
[1741488915065,0.1124686,2182.4,2182.0,6.33573]
[1741488915267,0.1124686,2182.4,2182.0,5.7857]
[1741488915463,0.1124686,2182.4,2182.2,0.54999]
[1741488915967,0.1124686,2182.4,2182.3,2.8091]
[1741488918063,0.1124686,2182.4,2182.3,3.35907]
[1741488919867,0.1124686,2182.4,2182.3,6.56687]
[1741488923366,0.1124686,2182.4,2182.3,6.0169]
[1741488923571,0.1124686,2182.4,2182.3,2.8091]
[1741488923773,0.1124686,2182.4,2182.3,3.35907]
[1741488925470,0.1124686,2182.4,2182.3,2.8091]
[1741488926065,0.1124686,2182.4,2182.0,11.55453]
[1741488926266,2.7515686,2182.4,2182.0,14.42263]
[1741488926466,2.7515686,2182.4,2182.1,0.55002]
[1741488927969,0.1124686,2182.4,2182.3,0.54997]
[1741488930167,0.1124686,2182.4,2182.1,0.55]
[1741488930773,0.1124686,2182.4,2182.2,0.54999]
[1741488934572,0.1124686,2182.4,2182.3,0.54997]
[1741488935173,0.1056,2182.4,2182.3,3.75777]
[1741488935470,0.1056,2182.4,2182.3,7.75777]
[1741488936065,4.2017,2182.6,2182.5,0.54992]
[1741488936066,1.06255059,2182.6,2182.5,0.54992]
[1741488936268,4.8516,2183.3,2183.1,0.54976]
[1741488936465,4.8516,2183.3,2183.2,0.54975]
[1741488936673,2.6837686,2183.4,2183.0,0.5498]
[1741488936866,2.6837686,2183.4,2183.1,0.54975]
[1741488938269,2.6837686,2183.4,2183.1,0.93752949]
[1741488938976,2.6837686,2183.4,2183.2,0.54974]
[1741488939671,2.6837686,2183.4,2183.0,8.1539686]
[1741488939876,2.6837686,2183.4,2183.2,0.54974]
[1741488940273,2.6837686,2183.4,2183.1,0.54976]
[1741488940473,2.6837686,2183.4,2183.0,8.55451405]
[1741488940874,2.6837686,2183.4,2183.2,0.54973]
[1741488941069,2.6837686,2183.4,2183.3,0.54972]
[1741488941276,0.0068686,2183.4,2183.3,0.54972]
[1741488943177,1.8318,2183.6,2183.5,0.54967]
[1741488943577,1.8318,2183.6,2183.5,3.75747]
[1741488947376,1.8318,2183.6,2183.4,10.2863]
[1741488947589,1.8318,2183.6,2183.4,10.83598]
[1741488947889,1.8318,2183.6,2183.4,14.04378]
[1741488948184,0.7768,2183.6,2183.5,0.54967]
[1741488950379,0.7768,2183.6,2183.4,13.4941]
[1741488951484,0.7768,2183.6,2183.5,0.54967]
[1741488951684,3.4463,2183.6,2183.4,11.33678]
[1741488951985,3.4463,2183.6,2183.4,10.7871]
[1741488952187,3.4463,2183.6,2183.5,0.54967]
[1741488955688,3.4463,2183.6,2183.4,9.33277]
[1741488955876,3.4463,2183.6,2183.4,8.7831]
[1741488956890,3.4463,2183.6,2183.5,0.54967]
[1741488958192,6.13,2183.6,2183.5,0.54967]
[1741488961587,5.3532,2183.6,2183.5,0.54967]
[1741488970896,0.8288,2183.9,2183.8,0.54959]
[1741488971096,0.36562857,2183.9,2183.8,0.54959]
[1741488971488,0.36562857,2183.9,2183.8,5.93849]
[1741488973092,5.2407,2184.3,2183.8,5.3889]
[1741488973292,2.6199,2184.3,2184.2,0.54949]
[1741488973794,2.6199,2184.3,2184.0,3.2078]
[1741488974088,2.6199,2184.3,2184.2,0.54949]
[1741488974295,2.6199,2184.3,2184.0,3.75733]
[1741488974793,2.6199,2184.3,2184.1,0.54951]
[1741488975501,2.6199,2184.3,2184.0,3.2078]
[1741488975795,2.6199,2184.3,2184.1,0.54951]
[1741488975990,2.6199,2184.3,2184.0,3.2078]
[1741488976187,2.6199,2184.3,2184.0,3.75733]
[1741488976384,5.352,2184.3,2184.0,3.75733]
[1741488976588,5.352,2184.3,2184.1,0.54951]
[1741488977198,2.6199,2184.3,2184.2,0.54949]
[1741488977396,2.7186686,2184.4,2184.3,0.54947]
[1741488977899,0.0068686,2184.4,2184.3,0.54947]
[1741488978195,0.0068686,2184.4,2184.3,3.75727]
[1741488978595,0.0068686,2184.4,2184.3,6.32307]
[1741488981492,0.0068686,2184.4,2184.3,6.66669733]
[1741488981792,0.0068686,2184.4,2184.3,3.55142733]
[1741488982597,0.0068686,2184.4,2184.3,4.10089733]
[1741488983195,0.0068686,2184.4,2184.3,3.55142733]
[1741488983398,0.0068686,2184.4,2184.3,0.34362733]
[1741488983588,0.0068686,2184.4,2184.3,0.54947]
[1741488983790,2.5896686,2184.4,2184.3,0.54947]
[1741488985692,2.5896686,2184.4,2184.1,0.0068686]
[1741488986799,3.2078,2184.3,2184.1,0.0068686]
[1741488986997,3.75727,2184.3,2183.7,3.75741]
[1741488987199,3.2078,2184.3,2183.7,3.75741]
[1741488987399,3.2078,2184.3,2183.8,0.54959]
[1741488987795,1.998,2184.2,2183.8,0.54959]
[1741488987996,2.4965,2184.1,2183.8,0.54959]
[1741488988198,2.6061,2184.0,2183.8,0.5564586]
[1741488988704,2.6061,2184.0,2183.8,0.0068686]
[1741488988897,2.6061,2184.0,2183.8,0.5564586]
[1741488989098,2.6061,2184.0,2183.8,0.0068686]
[1741488989999,5.8139,2184.0,2183.8,0.0068686]
[1741488990199,2.5366,2183.9,2183.8,0.0068686]
[1741488991304,2.5366,2183.9,2183.8,0.5564586]
[1741488991496,2.5366,2183.9,2183.8,0.0068686]
[1741488992095,2.5366,2183.9,2183.8,0.5564586]
[1741488992302,2.6061,2184.0,2183.8,0.5564586]
[1741488992508,2.6061,2184.0,2183.9,2.4678]
[1741488993103,2.5903,2184.1,2183.9,2.4678]
[1741488993406,2.5903,2184.1,2183.9,3.01737]
[1741488994307,2.5903,2184.1,2183.9,2.4678]
[1741488994904,2.5903,2184.1,2183.8,2.7044686]
[1741488995810,2.5903,2184.1,2183.8,0.0068686]
[1741488996421,2.5903,2184.1,2183.9,0.54955]
[1741488997722,2.5903,2184.1,2183.8,5.8262586]
[1741488998021,2.5903,2184.1,2183.8,3.1511586]
[1741488998409,2.5903,2184.1,2183.8,0.0068686]
[1741488998816,2.5903,2184.1,2183.8,0.5564586]
[1741488999017,2.5903,2184.1,2183.8,0.0068686]
[1741488999917,2.5903,2184.1,2183.8,0.5564486]
[1741489001721,2.5903,2184.1,2183.9,0.54956]
[1741489001923,2.5903,2184.1,2183.8,0.0068686]
[1741489002526,2.5903,2184.1,2183.8,0.5564586]
[1741489002922,2.5903,2184.1,2183.8,0.5564486]
[1741489003529,2.5903,2184.1,2183.8,0.0068686]
[1741489003922,2.5903,2184.1,2183.8,0.5564586]
[1741489004230,2.5903,2184.1,2183.8,0.0068686]
[1741489004731,2.5903,2184.1,2183.8,0.5564586]
[1741489007733,2.5903,2184.1,2183.8,0.5564486]
[1741489008733,2.5903,2184.1,2183.8,0.0068686]
[1741489008936,2.5532,2184.2,2183.8,0.0068686]
[1741489009235,2.5532,2184.2,2184.0,0.54954]
[1741489009433,2.5532,2184.2,2184.1,2.549]
[1741489009828,2.5532,2184.2,2183.9,2.5599]
[1741489010029,2.5532,2184.2,2183.9,5.1089]
[1741489010329,2.5532,2184.2,2183.9,2.549]
[1741489010529,5.0252,2184.2,2183.9,2.549]
[1741489011126,5.0252,2184.2,2183.9,3.09857]
[1741489011531,5.0252,2184.2,2183.9,2.549]
[1741489011936,5.0252,2184.2,2183.9,3.09857]
[1741489012133,5.0252,2184.2,2184.0,0.54954]
[1741489012335,5.0252,2184.2,2183.9,2.549]
[1741489012538,5.0252,2184.2,2183.9,3.09856]
[1741489012836,5.0252,2184.2,2183.8,3.1746486]
[1741489013034,5.0252,2184.2,2183.8,5.8850486]
[1741489013230,5.0252,2184.2,2183.9,0.54956]
[1741489014336,5.0252,2184.2,2183.8,0.0068686]
[1741489014535,5.57471,2184.2,2183.8,0.0068686]
[1741489015731,5.0252,2184.2,2183.8,0.0068686]
[1741489015936,5.57472,2184.2,2183.8,0.0068686]
[1741489016735,5.0252,2184.2,2183.8,0.0068686]
[1741489017035,5.5747,2184.2,2183.8,0.0068686]
[1741489017237,5.0252,2184.2,2183.8,0.0068686]
[1741489017441,5.0252,2184.2,2183.9,0.54956]
[1741489017632,5.0252,2184.2,2183.9,2.96046]
[1741489018338,5.5747,2184.2,2183.8,0.0068686]
[1741489019234,8.69541366,2184.2,2183.8,0.0068686]
[1741489020632,8.14591366,2184.2,2183.8,0.0068686]
[1741489021035,8.69542366,2184.2,2183.8,0.0068686]
[1741489022336,0.54953,2184.1,2183.8,0.0068686]
[1741489022538,8.14591366,2184.2,2183.8,0.0068686]
[1741489022837,0.54953,2184.1,2183.8,0.0068686]
[1741489024039,0.54952,2184.1,2183.8,0.0068686]
[1741489024743,1.998,2184.0,2183.8,0.0068686]
[1741489025145,2.6184,2183.9,2183.8,0.0068686]
[1741489026844,8.14591366,2184.2,2183.9,0.54957]
[1741489027046,10.14391366,2184.2,2184.0,5.1454]
[1741489028649,5.67391366,2184.2,2184.0,5.1454]
[1741489029940,2.5532,2184.2,2184.0,5.1454]
[1741489030145,5.7841,2184.3,2184.0,5.69494]
[1741489030945,3.2078,2184.3,2184.1,0.54952]
[1741489031347,3.2078,2184.3,2184.0,5.1454]
[1741489031348,0.0068686,2184.4,2184.0,5.69493]
[1741489031742,0.0068686,2184.4,2184.1,0.54951]
[1741489032049,0.0068686,2184.4,2184.3,0.54947]
[1741489032642,0.0068686,2184.4,2184.3,3.18717]
[1741489033446,0.0068686,2184.4,2184.2,3.2078]
[1741489034045,0.0068686,2184.4,2184.0,7.1434]
[1741489034347,0.0068686,2184.4,2184.0,2.504]
[1741489035847,0.0068686,2184.4,2184.0,3.05353]
[1741489037150,0.0068686,2184.4,2184.3,0.54947]
[1741489037453,0.0068686,2184.4,2184.2,0.54948]
[1741489038659,0.0068686,2184.4,2184.0,2.504]
[1741489038847,0.0068686,2184.4,2184.1,0.54951]
[1741489039655,0.0068686,2184.4,2184.0,2.504]
[1741489039858,0.0068686,2184.4,2184.0,3.05354]
[1741489040254,3.2078,2184.3,2184.0,3.05354]
[1741489040659,5.7522,2184.3,2184.0,3.05354]
[1741489040957,3.2078,2184.3,2184.0,2.504]
[1741489041150,3.2078,2184.3,2184.1,0.54951]
[1741489041347,3.2078,2184.3,2184.0,3.05354]
[1741489041966,3.2078,2184.3,2184.0,2.504]
[1741489042154,3.2078,2184.3,2184.0,3.05354]
[1741489043260,2.5512686,2184.4,2184.0,3.05354]
[1741489043655,2.5512686,2184.4,2184.0,2.504]
[1741489044055,3.1007086,2184.4,2184.0,2.504]
[1741489045163,2.5512686,2184.4,2184.0,3.05354]
[1741489045462,2.5512686,2184.4,2184.0,2.504]
[1741489046064,0.0068686,2184.4,2184.2,0.54948]
[1741489046261,0.0068686,2184.4,2184.3,4.8847]
[1741489046665,0.0068686,2184.4,2184.0,2.504]
[1741489046869,0.0068686,2184.4,2184.1,2.528]
[1741489048159,0.54951,2184.2,2183.8,0.0068686]
[1741489048370,6.9918,2184.1,2183.8,0.0068686]
[1741489048560,9.4752,2184.1,2183.8,0.0068686]
[1741489050374,6.9249,2184.1,2183.8,0.5564486]
[1741489050568,6.9249,2184.1,2183.9,2.5973]
[1741489050769,6.9249,2184.1,2183.9,3.14686]
[1741489051365,1.997,2184.1,2183.9,3.14686]
[1741489051567,1.997,2184.1,2183.9,2.5973]
[1741489051768,3.2078,2184.3,2183.9,3.14686]
[1741489051973,5.2048,2184.3,2183.9,2.5973]
[1741489053177,5.2048,2184.3,2183.9,3.14686]
[1741489053377,5.2048,2184.3,2183.9,2.5973]
[1741489055584,0.54951,2184.2,2183.8,3.2146686]
[1741489055783,5.75428,2184.3,2183.8,3.2146686]
[1741489056977,0.5495,2184.2,2183.8,3.2146686]
[1741489057284,2.4172,2184.1,2183.8,3.2146686]
[1741489057581,2.4752,2184.0,2183.8,0.0068686]
[1741489057882,8.2586,2184.0,2183.8,0.0068686]
[1741489058184,1.997,2183.9,2183.8,0.0068686]
[1741489064991,2.54657,2183.9,2183.8,0.0068686]
[1741489065887,9.11771366,2183.9,2182.9,3.2078]
[1741489066090,0.54969,2183.5,2183.1,2.3454]
[1741489066289,6.7858,2183.4,2183.1,2.3454]
[1741489066588,9.3505,2183.4,2183.1,2.3454]
[1741489068279,13.10801,2183.4,2183.1,2.3454]
[1741489068479,12.5583,2183.4,2183.1,2.3454]
[1741489068986,4.3509,2183.4,2183.2,0.54973]
[1741489069286,2.3539,2183.4,2183.1,2.3454]
[1741489069494,7.5587,2183.4,2183.1,2.3454]
[1741489069989,7.5587,2183.4,2183.1,4.7015]
[1741489070389,5.2048,2183.4,2183.1,4.7015]
[1741489071480,1.997,2183.4,2183.1,4.7015]
[1741489071985,17.86703086,2183.2,2183.1,4.7015]
[1741489072385,17.86703086,2183.2,2183.1,5.25127]
[1741489072691,17.86703086,2183.2,2183.1,4.7015]
[1741489072992,17.86703086,2183.2,2183.1,5.25127]
[1741489074189,17.86703086,2183.2,2183.1,4.7015]
[1741489074390,17.86703086,2183.2,2183.1,2.3454]
[1741489081792,17.86703086,2183.2,2183.1,2.89517]
[1741489084390,17.86703086,2183.2,2183.1,2.3454]
[1741489085096,17.86703086,2183.2,2183.1,2.89517]
[1741489086388,17.86703086,2183.2,2183.1,2.3454]
[1741489086692,17.86703086,2183.2,2183.0,3.0496486]
[1741489086693,17.86703086,2183.2,2183.0,0.0068686]
[1741489086899,7.7877,2183.1,2183.0,0.0068686]
[1741489087090,10.0447,2183.1,2183.0,0.0068686]
[1741489089693,10.0447,2183.1,2182.3,3.2078]
[1741489089893,10.0447,2183.1,2182.5,0.5499]
[1741489090199,10.0447,2183.1,2182.6,0.54989]
[1741489090693,10.0447,2183.1,2182.7,2.199]
[1741489091095,10.59449,2183.1,2182.6,0.0068686]
[1741489091689,10.0447,2183.1,2182.6,0.0068686]
[1741489091997,10.0447,2183.1,2182.6,0.5567686]
[1741489094803,10.59448,2183.1,2182.6,0.5567686]
[1741489097206,10.0447,2183.1,2182.6,0.0068686]
[1741489097406,10.0447,2183.1,2182.7,0.54986]
[1741489097610,10.0447,2183.1,2182.7,0.54987]
[1741489097909,10.0447,2183.1,2182.6,0.0068686]
[1741489099307,0.54984,2182.9,2182.6,0.0068686]
[1741489099608,5.2058,2182.8,2182.6,0.0068686]
[1741489099805,2.349,2182.7,2182.6,0.0068686]
[1741489100005,4.642,2182.7,2182.6,0.0068686]
[1741489100603,2.349,2182.7,2182.6,0.5567686]
[1741489100803,2.349,2182.7,2182.6,0.0068686]
[1741489101400,3.2078,2182.8,2182.6,0.0068686]
[1741489101606,4.347,2182.9,2182.6,0.5567586]
[1741489101807,4.347,2182.9,2182.7,2.2648]
[1741489102206,4.347,2182.9,2182.6,0.0068686]
[1741489106414,4.347,2182.9,2182.6,0.5567586]
[1741489107620,4.347,2182.9,2182.7,2.25]
[1741489113325,4.347,2182.9,2182.8,2.2427]
[1741489113526,2.349,2182.9,2182.8,2.2427]
[1741489113722,5.2058,2183.1,2182.8,2.2427]
[1741489113923,1.998,2183.1,2182.9,2.2073]
[1741489114321,1.998,2183.1,2183.0,2.3525]
[1741489115214,6.469,2183.2,2183.0,2.3525]
[1741489115423,1.998,2183.2,2183.0,2.3525]
[1741489115629,0.0068686,2183.3,2183.0,2.3525]
[1741489115825,0.0068686,2183.3,2183.1,0.54975]
[1741489116129,0.0068686,2183.3,2183.2,2.69665]
[1741489117024,19.60180393,2183.5,2183.2,2.1469]
[1741489117223,19.60180393,2183.5,2183.4,0.5497]
[1741489118315,0.0068686,2183.7,2183.3,7.7178]
[1741489118520,0.0068686,2183.7,2183.5,0.54967]
[1741489118730,0.0068686,2183.7,2183.6,2.2855]
[1741489119818,0.0068686,2183.7,2183.6,2.83515]
[1741489121129,0.0068686,2183.7,2183.6,2.2855]
[1741489124933,0.0068686,2183.7,2183.5,0.33774032]
[1741489125139,2.1614686,2183.7,2183.3,7.6374]
[1741489125332,2.2385,2183.6,2183.3,4.4296]
[1741489125837,2.2561,2183.5,2183.3,4.97932]